[Event "Championnat d'Europe Rapide"]
[Date "2024.12.07"]
[White "Uruci, Endrit"]
[Black "Stojanovski, Dejan"]
[WhiteElo "2328"]
[BlackElo "2407"]
[Round "6.34"]
[Result "0-1"]
[TimeControl "900+10"]

1. e4 {[%emt 00:00:02] [%clk 00:15:16]} d6 {[%emt 00:00:17] [%clk 00:15:04]} 2.
Nc3 {[%emt 00:00:08] [%clk 00:15:17]} Nf6 {[%emt 00:00:02] [%clk 00:15:13]} 3.
d4 {[%emt 00:00:02] [%clk 00:15:24]} e5 {[%emt 00:00:01] [%clk 00:15:22]} 4.
dxe5 {[%emt 00:00:10] [%clk 00:15:24]} dxe5 {[%emt 00:00:02] [%clk 00:15:31]} 5.
Qxd8+ {[%emt 00:00:03] [%clk 00:15:31]} Kxd8 {[%emt 00:00:01] [%clk 00:15:39]}
6. Bc4 {[%emt 00:00:02] [%clk 00:15:39]} Ke8 {[%emt 00:00:09] [%clk 00:15:40]}
7. Nge2 {[%emt 00:00:17] [%clk 00:15:31]} a6 {[%emt 00:00:26] [%clk 00:15:25]}
8. a4 {[%emt 00:00:07] [%clk 00:15:34]} Bd6 {[%emt 00:00:16] [%clk 00:15:19]} 9.
Be3 {[%emt 00:00:27] [%clk 00:15:16]} Nbd7 {[%emt 00:00:18] [%clk 00:15:13]} 10.
f3 {[%emt 00:00:03] [%clk 00:15:23]} b6 {[%emt 00:00:20] [%clk 00:15:03]} 11.
Nd5 {[%emt 00:00:29] [%clk 00:15:03]} Bb7 {[%emt 00:00:40] [%clk 00:14:34]} 12.
Nec3 {[%emt 00:00:04] [%clk 00:15:08]} Nxd5 {[%emt 00:01:39] [%clk 00:13:06]}
13. Nxd5 {[%emt 00:00:04] [%clk 00:15:14]} b5 {[%emt 00:01:43] [%clk 00:11:33]}
14. Bb3 {[%emt 00:01:06] [%clk 00:14:16]} b4 {[%emt 00:01:11] [%clk 00:10:33]}
15. a5 {[%emt 00:00:48] [%clk 00:13:39]} Nf6 {[%emt 00:00:46] [%clk 00:09:57]}
16. Ba4+ {[%emt 00:01:09] [%clk 00:12:40]} Kf8 {[%emt 00:00:05] [%clk 00:10:02]}
17. Nxf6 {[%emt 00:01:11] [%clk 00:11:39]} gxf6 {[%emt 00:00:01] [%clk
00:10:11]} 18. Bh6+ {[%emt 00:00:02] [%clk 00:11:46]} Ke7 {[%clk 00:10:20]} 19.
h4 {[%emt 00:00:06] [%clk 00:11:51]} Bc5 {[%emt 00:00:59] [%clk 00:09:31]} 20.
g4 {[%emt 00:00:41] [%clk 00:11:20]} Rad8 {[%emt 00:00:35] [%clk 00:09:07]} 21.
Rd1 {[%emt 00:02:08] [%clk 00:09:22]} Rxd1+ {[%emt 00:00:48] [%clk 00:08:30]}
22. Kxd1 {[%emt 00:00:02] [%clk 00:09:29]} Rd8+ {[%emt 00:00:57] [%clk
00:07:43]} 23. Ke2 {[%emt 00:00:33] [%clk 00:09:06]} Bc8 {[%emt 00:00:34] [%clk
00:07:20]} 24. Bb3 {[%emt 00:02:10]} Be6 {[%clk 00:07:17]} 25. Bxe6 {[%emt
00:00:04] [%clk 00:07:25]} fxe6 {[%emt 00:00:12] [%clk 00:07:15]} 26. Bd2 {[%emt
00:00:40] [%clk 00:06:55]} Rb8 {[%emt 00:00:13] [%clk 00:07:13]} 27. b3 {[%emt
00:00:14] [%clk 00:06:51]} Bd4 {[%emt 00:00:12] [%clk 00:07:11]} 28. Kd3 {[%emt
00:00:47] [%clk 00:06:14]} c5 {[%emt 00:00:09] [%clk 00:07:12]} 29. g5 {[%emt
00:01:29] [%clk 00:04:56]} Rb5 {[%emt 00:01:27] [%clk 00:05:54]} 30. gxf6+
{[%emt 00:00:02] [%clk 00:05:04]} Kxf6 {[%clk 00:06:04]} 31. Bg5+ {[%emt
00:00:02] [%clk 00:05:12]} Kf7 {[%emt 00:00:07] [%clk 00:06:07]} 32. Bd8 {[%emt
00:00:03] [%clk 00:05:19]} Rb8 {[%emt 00:00:06] [%clk 00:06:11]} 33. Bb6 {[%emt
00:01:19] [%clk 00:04:10]} Rg8 {[%emt 00:00:24] [%clk 00:05:57]} 34. h5 {[%emt
00:02:20] [%clk 00:02:00]} Rg3 {[%emt 00:00:01] [%clk 00:06:06]} 35. Rf1 {[%emt
00:00:01] [%clk 00:02:09]} Rh3 {[%emt 00:00:06] [%clk 00:06:10]} 36. h6 {[%emt
00:00:33] [%clk 00:01:46]} Rxh6 {[%emt 00:00:05] [%clk 00:06:14]} 37. f4 {[%emt
00:00:22] [%clk 00:01:34]} Rh3+ {[%emt 00:00:09] [%clk 00:06:15]} 38. Ke2 {[%emt
00:00:01] [%clk 00:01:43]} exf4 {[%emt 00:00:10] [%clk 00:06:15]} 39. Rxf4+
{[%emt 00:00:02] [%clk 00:01:51]} Ke7 {[%emt 00:00:01] [%clk 00:06:24]} 40. Rg4
{[%emt 00:00:17] [%clk 00:01:44]} Kd7 {[%emt 00:00:55] [%clk 00:05:39]} 41. Rg8
{[%emt 00:00:02] [%clk 00:01:51]} Kc6 {[%emt 00:01:37] [%clk 00:04:12]} 42. Ra8
{[%emt 00:00:24] [%clk 00:01:38]} Kb5 {[%emt 00:00:05] [%clk 00:04:18]} 43. Rb8
{[%emt 00:00:08] [%clk 00:01:40]} Re3+ {[%emt 00:00:21] [%clk 00:04:06]} 44. Kd2
{[%clk 00:01:49]} Rxe4 {[%emt 00:00:03] [%clk 00:04:14]} 45. Bd8+ {[%emt
00:01:26] [%clk 00:00:33]} Kc6 {[%emt 00:00:15] [%clk 00:04:09]} 46. Rb6+ {[%emt
00:00:03] [%clk 00:00:40]} Kd7 {[%emt 00:00:12] [%clk 00:04:07]} 47. Bg5 {[%emt
00:00:04] [%clk 00:00:45]} Bc3+ {[%emt 00:00:02] [%clk 00:04:15]} 48. Kd3 {[%emt
00:00:06] [%clk 00:00:50]} Rd4+ {[%clk 00:04:24]} 49. Ke2 {[%emt 00:00:06] [%clk
00:00:54]} Rd6 {[%emt 00:00:11] [%clk 00:04:23]} 50. Rb7+ {[%emt 00:00:01] [%clk
00:01:03]} Kc6 {[%emt 00:00:01] [%clk 00:04:31]} 51. Rxh7 {[%emt 00:00:01] [%clk
00:01:11]} e5 {[%emt 00:00:10] [%clk 00:04:32]} 52. Rh8 {[%emt 00:00:28] [%clk
00:00:53]} Kd5 {[%emt 00:00:04] [%clk 00:04:38]} 53. Be7 {[%emt 00:00:11] [%clk
00:00:51]} Rd7 {[%emt 00:00:10] [%clk 00:04:38]} 54. Bg5 {[%emt 00:00:04] [%clk
00:00:57]} Rd6 {[%emt 00:00:34] [%clk 00:04:14]} 55. Be7 {[%emt 00:00:02] [%clk
00:01:04]} Rd7 {[%emt 00:00:31] [%clk 00:03:54]} 56. Bg5 {[%emt 00:00:01] [%clk
00:01:13]} Bd4 {[%emt 00:00:06] [%clk 00:03:58]} 57. Ra8 {[%emt 00:00:10] [%clk
00:01:12]} Rd6 {[%emt 00:00:02] [%clk 00:04:07]} 58. Be7 {[%clk 00:01:21]} Rg6
{[%emt 00:00:01] [%clk 00:04:16]} 59. Rd8+ {[%emt 00:00:04] [%clk 00:01:27]} Ke4
{[%emt 00:00:01] [%clk 00:04:25]} 60. Rc8 {[%emt 00:00:28] [%clk 00:01:10]} Rg2+
{[%emt 00:00:04] [%clk 00:04:30]} 61. Kf1 {[%emt 00:00:14] [%clk 00:01:06]} Rxc2
{[%emt 00:00:10] [%clk 00:04:31]} 62. Rc6 {[%emt 00:00:01] [%clk 00:01:14]} c4
{[%emt 00:00:09] [%clk 00:04:32]} 0-1

[Site "Europe Echecs"]

[Event "Championnat d'Europe Rapide"]
[Date "2024.12.07"]
[White "Beerdsen, Thomas"]
[Black "Guid, Matej"]
[WhiteElo "2502"]
[BlackElo "2266"]
[Round "6.35"]
[Result "1-0"]
[TimeControl "900+10"]

1. e4 {[%emt 00:00:01] [%clk 00:15:18]} e6 {[%emt 00:00:02] [%clk 00:15:19]} 2.
d4 {[%emt 00:00:02] [%clk 00:15:26]} d5 {[%clk 00:15:27]} 3. Nc3 {[%emt
00:00:01] [%clk 00:15:35]} dxe4 {[%emt 00:00:02] [%clk 00:15:37]} 4. Nxe4 {[%emt
00:00:01] [%clk 00:15:43]} Nd7 {[%emt 00:00:01] [%clk 00:15:45]} 5. Nf3 {[%emt
00:00:02] [%clk 00:15:51]} Ngf6 {[%clk 00:15:55]} 6. Bg5 {[%emt 00:00:02] [%clk
00:15:59]} h6 {[%emt 00:00:01] [%clk 00:16:04]} 7. Nxf6+ {[%emt 00:00:05] [%clk
00:16:04]} Nxf6 {[%emt 00:00:02] [%clk 00:16:12]} 8. Bxf6 {[%emt 00:00:04] [%clk
00:16:10]} Qxf6 {[%emt 00:00:02] [%clk 00:16:20]} 9. Bd3 {[%emt 00:00:04] [%clk
00:16:16]} Bd6 {[%emt 00:00:02] [%clk 00:16:28]} 10. Qe2 {[%emt 00:00:21] [%clk
00:16:05]} Bd7 {[%emt 00:00:06] [%clk 00:16:33]} 11. O-O-O {[%emt 00:00:07]
[%clk 00:16:08]} O-O-O {[%emt 00:00:03] [%clk 00:16:40]} 12. Be4 {[%emt
00:00:22] [%clk 00:15:56]} Kb8 {[%emt 00:00:57] [%clk 00:15:52]} 13. Kb1 {[%emt
00:00:03] [%clk 00:16:03]} c5 {[%emt 00:00:26] [%clk 00:15:36]} 14. dxc5 {[%emt
00:00:27] [%clk 00:15:46]} Bxc5 {[%emt 00:00:18] [%clk 00:15:25]} 15. Rd3 {[%emt
00:00:18] [%clk 00:15:42]} Ba4 {[%emt 00:02:50] [%clk 00:12:45]} 16. Rc3 {[%emt
00:01:08] [%clk 00:14:44]} Bb4 {[%emt 00:03:59] [%clk 00:08:56]} 17. Re3 {[%emt
00:00:03] [%clk 00:14:51]} Bc5 {[%emt 00:00:24] [%clk 00:08:43]} 18. Rc3 {[%emt
00:00:05] [%clk 00:14:55]} Bb4 {[%emt 00:00:03] [%clk 00:08:50]} 19. Rd3 {[%emt
00:00:02] [%clk 00:15:03]} Rxd3 {[%emt 00:01:06] [%clk 00:07:55]} 20. Qxd3
{[%emt 00:00:15] [%clk 00:14:57]} Rc8 {[%emt 00:00:12] [%clk 00:07:53]} 21. Rc1
{[%emt 00:00:27] [%clk 00:14:40]} Bc5 {[%emt 00:01:13] [%clk 00:06:51]} 22. Qd2
{[%emt 00:00:44] [%clk 00:14:06]} Qd8 {[%emt 00:00:22] [%clk 00:06:40]} 23. Bd3
{[%emt 00:00:33] [%clk 00:13:42]} Bc6 {[%emt 00:01:47] [%clk 00:05:03]} 24. Qe2
{[%emt 00:01:48] [%clk 00:12:04]} Qb6 {[%emt 00:01:42] [%clk 00:03:32]} 25. Ne5
{[%emt 00:00:08] [%clk 00:12:06]} f6 {[%emt 00:01:30] [%clk 00:02:13]} 26. Nc4
{[%emt 00:00:39] [%clk 00:11:37]} Qc7 {[%emt 00:00:02] [%clk 00:02:21]} 27. g3
{[%emt 00:00:17] [%clk 00:11:29]} Bd5 {[%emt 00:00:26] [%clk 00:02:05]} 28. Ne3
{[%emt 00:00:06] [%clk 00:11:33]} Qc6 {[%emt 00:00:41] [%clk 00:01:34]} 29. Nxd5
{[%emt 00:00:12] [%clk 00:11:30]} Qxd5 {[%emt 00:00:02] [%clk 00:01:41]} 30. Be4
{[%emt 00:00:19] [%clk 00:11:20]} Qd4 {[%emt 00:00:10] [%clk 00:01:42]} 31. Rd1
{[%emt 00:00:04] [%clk 00:11:27]} Qxf2 {[%emt 00:00:21] [%clk 00:01:30]} 32. Qb5
{[%emt 00:00:02] [%clk 00:11:35]} Bb6 {[%emt 00:00:17] [%clk 00:01:24]} 33. Qd7
{[%emt 00:00:15] [%clk 00:11:30]} Bc7 {[%emt 00:00:57] [%clk 00:00:37]} 34. Qxe6
{[%emt 00:00:53] [%clk 00:10:47]} Qe2 {[%emt 00:00:26] [%clk 00:00:21]} 35. Qd5
{[%emt 00:00:18] [%clk 00:10:39]} Qa6 {[%emt 00:00:02] [%clk 00:00:30]} 36. Qf7
{[%emt 00:00:38] [%clk 00:10:11]} g5 {[%emt 00:00:11] [%clk 00:00:29]} 37. a3
{[%emt 00:00:21] [%clk 00:09:59]} Qb6 {[%emt 00:00:11] [%clk 00:00:27]} 38. Rd3
{[%emt 00:00:11] [%clk 00:09:58]} Qg1+ {[%emt 00:00:34] [%clk 00:00:00]} 1-0

[Site "Europe Echecs"]

[Event "Championnat d'Europe Rapide"]
[Date "2024.12.07"]
[White "Subelj, Jan"]
[Black "Kukov, Velislav"]
[WhiteElo "2526"]
[BlackElo "2316"]
[Round "6.36"]
[Result "1-0"]
[TimeControl "900+10"]

1. e4 {[%emt 00:00:02] [%clk 00:15:16]} g6 {[%emt 00:00:04] [%clk 00:15:17]} 2.
d4 {[%emt 00:00:02] [%clk 00:15:24]} Bg7 {[%emt 00:00:01] [%clk 00:15:26]} 3.
Nf3 {[%emt 00:00:04] [%clk 00:15:29]} c6 {[%emt 00:00:03] [%clk 00:15:33]} 4.
Bd3 {[%emt 00:00:24] [%clk 00:15:15]} d5 {[%emt 00:00:06] [%clk 00:15:37]} 5. e5
{[%emt 00:00:02] [%clk 00:15:23]} Bg4 {[%emt 00:00:12] [%clk 00:15:35]} 6. Nbd2
{[%emt 00:00:09] [%clk 00:15:23]} c5 {[%emt 00:01:43] [%clk 00:14:03]} 7. c3
{[%emt 00:00:10] [%clk 00:15:23]} Nc6 {[%emt 00:00:22] [%clk 00:13:51]} 8. h3
{[%emt 00:00:02] [%clk 00:15:30]} Bxf3 {[%emt 00:00:11] [%clk 00:13:51]} 9. Nxf3
{[%emt 00:00:02] [%clk 00:15:38]} cxd4 {[%emt 00:00:08] [%clk 00:13:53]} 10.
cxd4 {[%emt 00:00:01] [%clk 00:15:46]} e6 {[%emt 00:00:02] [%clk 00:14:02]} 11.
O-O {[%emt 00:00:03] [%clk 00:15:53]} Nge7 {[%emt 00:00:04] [%clk 00:14:08]} 12.
a3 {[%emt 00:00:12] [%clk 00:15:51]} O-O {[%emt 00:00:17] [%clk 00:14:01]} 13.
b4 {[%emt 00:00:02] [%clk 00:15:59]} a6 {[%emt 00:00:46] [%clk 00:13:26]} 14.
Bg5 {[%emt 00:00:08] [%clk 00:15:59]} Qb6 {[%emt 00:00:17] [%clk 00:13:20]} 15.
Qd2 {[%emt 00:00:05] [%clk 00:16:04]} Rac8 {[%emt 00:01:13] [%clk 00:12:17]} 16.
Qf4 {[%emt 00:00:07] [%clk 00:16:07]} Nf5 {[%emt 00:00:39] [%clk 00:11:49]} 17.
Bxf5 {[%emt 00:00:02] [%clk 00:16:15]} exf5 {[%emt 00:00:02] [%clk 00:11:57]}
18. Qh4 {[%emt 00:00:03] [%clk 00:16:22]} Nd8 {[%emt 00:00:26] [%clk 00:11:42]}
19. Rac1 {[%emt 00:00:32] [%clk 00:16:00]} Ne6 {[%emt 00:00:18] [%clk 00:11:34]}
20. Bf6 {[%emt 00:00:21] [%clk 00:15:49]} Rc6 {[%emt 00:01:16] [%clk 00:10:28]}
21. Bxg7 {[%emt 00:00:53] [%clk 00:15:06]} Kxg7 {[%emt 00:00:06] [%clk
00:10:33]} 22. Rxc6 {[%emt 00:00:04] [%clk 00:15:12]} Qxc6 {[%emt 00:00:06]
[%clk 00:10:37]} 23. Qf6+ {[%emt 00:00:01] [%clk 00:15:20]} Kg8 {[%emt 00:00:01]
[%clk 00:10:46]} 24. h4 {[%emt 00:00:01] [%clk 00:15:29]} Rc8 {[%emt 00:00:24]
[%clk 00:10:32]} 25. h5 {[%emt 00:00:16] [%clk 00:15:23]} Nf4 {[%emt 00:00:32]
[%clk 00:10:10]} 26. hxg6 {[%emt 00:00:09] [%clk 00:15:24]} Qxf6 {[%emt
00:02:03] [%clk 00:08:17]} 27. gxh7+ {[%emt 00:00:05] [%clk 00:15:29]} Kxh7
{[%emt 00:00:04] [%clk 00:08:24]} 28. exf6 {[%emt 00:00:03] [%clk 00:15:36]} Kg6
{[%emt 00:00:03] [%clk 00:08:30]} 29. Re1 {[%emt 00:00:26] [%clk 00:15:19]} Kxf6
{[%emt 00:00:13] [%clk 00:08:28]} 30. g3 {[%emt 00:00:02] [%clk 00:15:27]} Nd3
{[%emt 00:01:04] [%clk 00:07:34]} 31. Re3 {[%emt 00:00:02] [%clk 00:15:35]} Rc1+
{[%emt 00:01:11] [%clk 00:06:33]} 32. Kg2 {[%emt 00:00:03] [%clk 00:15:42]} Nb2
{[%emt 00:00:04] [%clk 00:06:40]} 33. Re5 {[%emt 00:00:49] [%clk 00:15:03]} Nc4
{[%emt 00:01:53] [%clk 00:04:57]} 34. Rxd5 {[%emt 00:00:13] [%clk 00:14:59]}
Nxa3 {[%emt 00:00:03] [%clk 00:05:04]} 35. Nh4 {[%emt 00:00:03] [%clk 00:15:05]}
Nb5 {[%emt 00:00:36] [%clk 00:04:38]} 36. Rxf5+ {[%emt 00:00:07] [%clk
00:15:08]} Kg7 {[%emt 00:00:26] [%clk 00:04:22]} 37. Nf3 {[%emt 00:01:02] [%clk
00:14:15]} Rb1 {[%emt 00:00:26] [%clk 00:04:06]} 38. Rd5 {[%emt 00:00:11] [%clk
00:14:14]} Rxb4 {[%emt 00:00:41] [%clk 00:03:35]} 39. Rd7 {[%emt 00:00:01] [%clk
00:14:23]} Nc3 {[%emt 00:01:56] [%clk 00:01:49]} 40. Ne5 {[%emt 00:00:04] [%clk
00:14:29]} a5 {[%emt 00:00:47] [%clk 00:01:12]} 41. Rxf7+ {[%emt 00:00:03] [%clk
00:14:36]} Kg8 {[%clk 00:01:21]} 42. Rc7 {[%emt 00:00:02] [%clk 00:14:45]} Ne4
{[%emt 00:00:44] [%clk 00:00:47]} 43. d5 {[%emt 00:00:27] [%clk 00:14:27]} a4
{[%emt 00:00:11] [%clk 00:00:47]} 44. Nc4 {[%emt 00:00:17] [%clk 00:14:19]} b5
{[%emt 00:00:37] [%clk 00:00:20]} 45. d6 {[%emt 00:00:02] [%clk 00:14:27]} Nf6
{[%emt 00:00:14] [%clk 00:00:16]} 46. Nb6 {[%emt 00:01:23] [%clk 00:13:13]} a3
{[%emt 00:00:10] [%clk 00:00:17]} 47. Nd5 {[%emt 00:00:05] [%clk 00:13:17]} Nxd5
{[%emt 00:00:10] [%clk 00:00:16]} 48. d7 {[%emt 00:00:03] [%clk 00:13:24]} Nf4+
{[%emt 00:00:15] [%clk 00:00:12]} 49. gxf4 {[%emt 00:00:03] [%clk 00:13:31]} Rd4
{[%clk 00:00:21]} 50. Rc8+ {[%emt 00:00:02] [%clk 00:13:39]} Kf7 {[%clk
00:00:31]} 51. d8=Q {[%emt 00:00:03] [%clk 00:13:47]} Rxd8 {[%emt 00:00:01]
[%clk 00:00:39]} 52. Rxd8 {[%emt 00:00:02] [%clk 00:13:56]} b4 {[%emt 00:00:01]
[%clk 00:00:48]} 53. Ra8 {[%emt 00:00:01] [%clk 00:14:05]} 1-0

[Site "Europe Echecs"]

[Event "Championnat d'Europe Rapide"]
[Date "2024.12.07"]
[White "Larkin, Vladyslav"]
[Black "Tudor, Henry Edward"]
[WhiteElo "2449"]
[BlackElo "2375"]
[Round "6.37"]
[Result "0-1"]
[TimeControl "900+10"]

1. e4 {[%emt 00:00:02] [%clk 00:15:18]} c5 {[%emt 00:00:23] [%clk 00:14:58]} 2.
Nf3 {[%emt 00:00:02] [%clk 00:15:26]} d6 {[%emt 00:00:15] [%clk 00:14:53]} 3.
Bb5+ {[%emt 00:00:02] [%clk 00:15:34]} Bd7 {[%emt 00:00:01] [%clk 00:15:02]} 4.
Bxd7+ {[%emt 00:00:03] [%clk 00:15:41]} Nxd7 {[%emt 00:00:02] [%clk 00:15:11]}
5. c4 {[%emt 00:00:04] [%clk 00:15:47]} Ngf6 {[%emt 00:00:21] [%clk 00:15:00]}
6. Nc3 {[%emt 00:00:01] [%clk 00:15:55]} Ne5 {[%emt 00:01:59] [%clk 00:13:11]}
7. d3 {[%emt 00:00:06] [%clk 00:16:00]} e6 {[%emt 00:00:19] [%clk 00:13:02]} 8.
O-O {[%emt 00:00:20] [%clk 00:15:50]} Be7 {[%emt 00:00:03] [%clk 00:13:08]} 9.
Ne1 {[%emt 00:00:45] [%clk 00:15:15]} O-O {[%emt 00:00:53] [%clk 00:12:26]} 10.
f4 {[%emt 00:00:12] [%clk 00:15:12]} Nc6 {[%emt 00:00:01] [%clk 00:12:35]} 11.
Nf3 {[%emt 00:00:22] [%clk 00:14:59]} a6 {[%emt 00:00:41] [%clk 00:12:04]} 12.
a4 {[%emt 00:00:02] [%clk 00:15:07]} Nd4 {[%emt 00:02:24] [%clk 00:09:50]} 13.
Kh1 {[%emt 00:00:10] [%clk 00:15:07]} Ne8 {[%emt 00:02:20] [%clk 00:07:40]} 14.
Be3 {[%emt 00:00:30] [%clk 00:14:47]} Nxf3 {[%emt 00:00:36] [%clk 00:07:15]} 15.
Qxf3 {[%emt 00:00:07] [%clk 00:14:49]} Nc7 {[%emt 00:00:03] [%clk 00:07:23]} 16.
d4 {[%emt 00:03:56] [%clk 00:11:02]} Rb8 {[%emt 00:02:08] [%clk 00:05:25]} 17.
Rad1 {[%emt 00:01:18] [%clk 00:09:55]} Qe8 {[%emt 00:03:23] [%clk 00:02:12]} 18.
e5 {[%emt 00:00:52] [%clk 00:09:13]} dxe5 {[%emt 00:00:04] [%clk 00:02:18]} 19.
d5 {[%emt 00:00:02] [%clk 00:09:21]} exd5 {[%emt 00:01:13] [%clk 00:01:15]} 20.
cxd5 {[%emt 00:00:01] [%clk 00:09:29]} Bd6 {[%emt 00:00:28] [%clk 00:00:57]} 21.
Ne4 {[%emt 00:00:27] [%clk 00:09:12]} exf4 {[%emt 00:00:24] [%clk 00:00:43]} 22.
Bxf4 {[%emt 00:00:15] [%clk 00:09:08]} Bxf4 {[%emt 00:00:02] [%clk 00:00:51]}
23. Qxf4 {[%emt 00:00:01] [%clk 00:09:17]} Rd8 {[%emt 00:00:44] [%clk 00:00:18]}
24. Rde1 {[%emt 00:09:09] [%clk 00:00:18]} Qd7 {[%emt 00:00:03] [%clk 00:00:24]}
25. Nf6+ {[%emt 00:00:15] [%clk 00:00:12]} gxf6 {[%emt 00:00:04] [%clk
00:00:30]} 26. Rf3 {[%clk 00:00:22]} Nxd5 {[%emt 00:00:24] [%clk 00:00:16]} 27.
Qh6 {[%emt 00:00:01] [%clk 00:00:30]} Kh8 {[%emt 00:00:08] [%clk 00:00:19]} 28.
Ref1 {[%emt 00:00:27] [%clk 00:00:14]} Rg8 {[%emt 00:00:09] [%clk 00:00:20]} 29.
Rh3 {[%clk 00:00:23]} Rg7 {[%emt 00:00:03] [%clk 00:00:27]} 30. Rd1 {[%emt
00:00:21] [%clk 00:00:12]} Qg4 {[%emt 00:00:16] [%clk 00:00:21]} 31. Rd2 {[%clk
00:00:22]} Re8 {[%emt 00:00:08] [%clk 00:00:23]} 32. Kg1 {[%emt 00:00:02] [%clk
00:00:30]} Qf4 {[%emt 00:00:22] [%clk 00:00:11]} 33. Qxf4 {[%emt 00:00:22] [%clk
00:00:18]} Nxf4 {[%emt 00:00:01] [%clk 00:00:20]} 34. Rf3 {[%clk 00:00:27]} Ne2+
{[%emt 00:00:16] [%clk 00:00:14]} 35. Kf2 {[%emt 00:00:04] [%clk 00:00:33]} Nd4
{[%emt 00:00:04] [%clk 00:00:20]} 36. Rxf6 {[%emt 00:00:01] [%clk 00:00:42]} Kg8
{[%emt 00:00:14] [%clk 00:00:17]} 37. b4 {[%clk 00:00:51]} Ne6 {[%emt 00:00:06]
[%clk 00:00:20]} 38. b5 {[%emt 00:00:05] [%clk 00:00:56]} axb5 {[%emt 00:00:02]
[%clk 00:00:28]} 39. axb5 {[%emt 00:00:01] [%clk 00:01:05]} Rg6 {[%emt 00:00:06]
[%clk 00:00:32]} 40. Rf5 {[%emt 00:00:02] [%clk 00:01:13]} b6 {[%emt 00:00:03]
[%clk 00:00:39]} 41. h4 {[%emt 00:00:01] [%clk 00:01:21]} Nd4 {[%emt 00:00:02]
[%clk 00:00:47]} 42. Rd5 {[%emt 00:00:03] [%clk 00:01:28]} Nxb5 {[%emt 00:00:23]
[%clk 00:00:34]} 43. h5 {[%clk 00:01:38]} Rf6+ {[%emt 00:00:01] [%clk 00:00:43]}
44. Kg1 {[%emt 00:00:04] [%clk 00:01:44]} h6 {[%emt 00:00:04] [%clk 00:00:49]}
45. Rd7 {[%emt 00:00:04] [%clk 00:01:50]} Nd4 {[%emt 00:00:04] [%clk 00:00:55]}
46. Rc7 {[%emt 00:00:06] [%clk 00:01:54]} Kg7 {[%emt 00:00:02] [%clk 00:01:03]}
47. Rd3 {[%emt 00:00:03] [%clk 00:02:01]} Re5 {[%emt 00:00:06] [%clk 00:01:07]}
48. Rh3 {[%emt 00:00:16] [%clk 00:01:56]} Rff5 {[%emt 00:00:15] [%clk 00:01:02]}
49. Ra3 {[%emt 00:00:18] [%clk 00:01:48]} Ne2+ {[%emt 00:00:02] [%clk 00:01:09]}
0-1

[Site "Europe Echecs"]

[Event "Championnat d'Europe Rapide"]
[Date "2024.12.07"]
[White "Samunenkov, Ihor"]
[Black "Wyss, Jonas"]
[WhiteElo "2543"]
[BlackElo "2270"]
[Round "6.38"]
[Result "1-0"]
[TimeControl "900+10"]

1. d4 {[%emt 00:00:05] [%clk 00:15:15]} Nf6 {[%emt 00:00:03] [%clk 00:15:17]} 2.
c4 {[%emt 00:00:03] [%clk 00:15:22]} g6 {[%emt 00:00:02] [%clk 00:15:24]} 3. Nf3
{[%emt 00:00:04] [%clk 00:15:28]} Bg7 {[%emt 00:00:02] [%clk 00:15:31]} 4. g3
{[%emt 00:00:03] [%clk 00:15:36]} c6 {[%emt 00:00:05] [%clk 00:15:37]} 5. Bg2
{[%emt 00:00:06] [%clk 00:15:40]} d5 {[%emt 00:00:02] [%clk 00:15:44]} 6. cxd5
{[%emt 00:00:04] [%clk 00:15:47]} cxd5 {[%emt 00:00:02] [%clk 00:15:52]} 7. Nc3
{[%emt 00:00:04] [%clk 00:15:54]} Ne4 {[%emt 00:00:47] [%clk 00:15:13]} 8. Qb3
{[%emt 00:00:18] [%clk 00:15:46]} Nxc3 {[%emt 00:00:20] [%clk 00:15:03]} 9. bxc3
{[%emt 00:00:03] [%clk 00:15:53]} Nc6 {[%emt 00:00:20] [%clk 00:14:53]} 10. Nd2
{[%emt 00:01:35] [%clk 00:14:29]} e6 {[%emt 00:00:19] [%clk 00:14:44]} 11. Ba3
{[%emt 00:01:08] [%clk 00:13:31]} Bf8 {[%emt 00:00:46] [%clk 00:14:07]} 12. Bxf8
{[%emt 00:00:17] [%clk 00:13:25]} Kxf8 {[%emt 00:00:03] [%clk 00:14:12]} 13. e4
{[%emt 00:00:06] [%clk 00:13:31]} dxe4 {[%emt 00:00:41] [%clk 00:13:41]} 14.
Nxe4 {[%emt 00:00:07] [%clk 00:13:34]} Kg7 {[%emt 00:00:22] [%clk 00:13:28]} 15.
h4 {[%emt 00:01:03] [%clk 00:12:42]} h5 {[%emt 00:00:09] [%clk 00:13:28]} 16.
Ng5 {[%emt 00:03:00] [%clk 00:09:52]} Qc7 {[%emt 00:00:48] [%clk 00:12:50]} 17.
O-O {[%emt 00:00:39] [%clk 00:09:24]} Na5 {[%emt 00:01:23] [%clk 00:11:37]} 18.
Qb4 {[%emt 00:00:17] [%clk 00:09:17]} Nc4 {[%emt 00:02:20] [%clk 00:09:27]} 19.
Rfd1 {[%emt 00:01:28] [%clk 00:07:59]} Rd8 {[%emt 00:02:54] [%clk 00:06:42]} 20.
Qc5 {[%emt 00:03:46] [%clk 00:04:24]} Qxc5 {[%emt 00:01:06] [%clk 00:05:46]} 21.
dxc5 {[%emt 00:00:03] [%clk 00:04:31]} Rxd1+ {[%emt 00:02:11] [%clk 00:03:45]}
22. Rxd1 {[%emt 00:00:02] [%clk 00:04:39]} Ne5 {[%emt 00:00:39]} 23. Rd8 {[%clk
00:04:20]} Nc6 {[%emt 00:00:26] [%clk 00:03:29]} 24. Bxc6 {[%emt 00:00:52] [%clk
00:03:38]} bxc6 {[%emt 00:00:01] [%clk 00:03:37]} 25. Ne4 {[%emt 00:00:11] [%clk
00:03:38]} Bb7 {[%emt 00:01:08] [%clk 00:02:39]} 26. Rd7 {[%emt 00:01:30] [%clk
00:02:17]} Ba6 {[%emt 00:00:10] [%clk 00:02:39]} 27. Nd6 {[%emt 00:00:05] [%clk
00:02:22]} Kf6 {[%emt 00:00:22] [%clk 00:02:27]} 28. c4 {[%emt 00:01:34] [%clk
00:00:59]} Ke5 {[%emt 00:01:08] [%clk 00:01:29]} 29. Nxf7+ {[%emt 00:00:03]
[%clk 00:01:06]} Ke4 {[%emt 00:00:47] [%clk 00:00:53]} 30. Ng5+ {[%emt 00:00:56]
[%clk 00:00:20]} Kf5 {[%emt 00:00:20] [%clk 00:00:43]} 31. Rf7+ {[%emt 00:00:16]
[%clk 00:00:14]} Ke5 {[%emt 00:00:05] [%clk 00:00:47]} 32. Rf4 {[%emt 00:00:02]
[%clk 00:00:22]} Bxc4 {[%emt 00:00:46] [%clk 00:00:11]} 33. Rxc4 {[%emt
00:00:03] [%clk 00:00:29]} Kd5 {[%emt 00:00:11] [%clk 00:00:11]} 34. Rc2 {[%emt
00:00:07] [%clk 00:00:31]} 1-0

[Site "Europe Echecs"]